[Event "Titled Tuesday Blitz April 05 Early 2022"]
[White "Todorovic, Bojan"]
[Black "Voege, Tobias"]
[WhiteFideId "917087"]
[BlackFideId "1270513"]
[WhiteElo "2266"]
[BlackElo "2297"]
[Result "1-0"]
[Round "02"]
[TimeControl "180+1"]
[Date "2022.04.05"]
[WhiteClock "0:00:10"]
[BlackClock "0:00:26"]

1. d4 {[%clk 0:02:59]}  d5 {[%clk 0:02:56]} 2. Bf4 {[%clk 0:02:57]}  Nc6 {[%clk 0:02:55]} 3. e3 {[%clk 0:02:56]}  Nf6 {[%clk 0:02:48]} 4. Nf3 {[%clk 0:02:50]}  Bg4 {[%clk 0:02:47]} 5. Bb5 {[%clk 0:02:44]}  e6 {[%clk 0:02:46]} 6. h3 {[%clk 0:02:44]}  Bxf3 {[%clk 0:02:45]} 7. Qxf3 {[%clk 0:02:43]}  Bd6 {[%clk 0:02:45]} 8. Nd2 {[%clk 0:02:40]}  O-O {[%clk 0:02:43]} 9. O-O {[%clk 0:02:36]}  Ne7 {[%clk 0:02:42]} 10. Bd3 {[%clk 0:02:34]}  Ng6 {[%clk 0:02:40]} 11. Bg5 {[%clk 0:02:26]}  c6 {[%clk 0:02:31]} 12. Bxf6 {[%clk 0:02:19]}  Qxf6 {[%clk 0:02:29]} 13. Qxf6 {[%clk 0:02:19]}  gxf6 {[%clk 0:02:30]} 14. c3 {[%clk 0:02:11]}  f5 {[%clk 0:02:26]} 15. g4 {[%clk 0:02:03]}  fxg4 {[%clk 0:02:22]} 16. hxg4 {[%clk 0:02:03]}  Kg7 {[%clk 0:02:21]} 17. f4 {[%clk 0:01:58]}  f5 {[%clk 0:01:57]} 18. gxf5 {[%clk 0:01:54]}  exf5 {[%clk 0:01:55]} 19. Nf3 {[%clk 0:01:54]}  Rae8 {[%clk 0:01:52]} 20. Ne5 {[%clk 0:01:53]}  Re6 {[%clk 0:01:40]} 21. Kf2 {[%clk 0:01:43]}  Bxe5 {[%clk 0:01:27]} 22. fxe5 {[%clk 0:01:37]}  f4 {[%clk 0:01:13]} 23. e4 {[%clk 0:01:36]}  f3 {[%clk 0:00:55]} 24. exd5 {[%clk 0:01:33]}  cxd5 {[%clk 0:00:56]} 25. Rg1 {[%clk 0:01:27]}  Rf4 {[%clk 0:00:47]} 26. Rg3 {[%clk 0:01:22]}  Rh4 {[%clk 0:00:42]} 27. Kxf3 {[%clk 0:01:13]}  Rh2 {[%clk 0:00:33]} 28. Bxg6 {[%clk 0:01:03]}  hxg6 {[%clk 0:00:24]} 29. Rg2 {[%clk 0:01:01]}  Rh3+ {[%clk 0:00:22]} 30. Ke2 {[%clk 0:01:00]}  Rb6 {[%clk 0:00:20]} 31. Rb1 {[%clk 0:00:26]}  Rxc3 {[%clk 0:00:20]} 32. bxc3 {[%clk 0:00:26]}  Rxb1 {[%clk 0:00:21]} 33. Kd3 {[%clk 0:00:23]}  Rc1 {[%clk 0:00:21]} 34. Rc2 {[%clk 0:00:21]}  Ra1 {[%clk 0:00:19]} 35. c4 {[%clk 0:00:18]}  dxc4+ {[%clk 0:00:20]} 36. Rxc4 {[%clk 0:00:18]}  Rxa2 {[%clk 0:00:19]} 37. Rc7+ {[%clk 0:00:17]}  Kf8 {[%clk 0:00:20]} 38. Ke4 {[%clk 0:00:15]}  g5 {[%clk 0:00:21]} 39. Kf5 {[%clk 0:00:14]}  b5 {[%clk 0:00:19]} 40. d5 {[%clk 0:00:13]}  b4 {[%clk 0:00:19]} 41. d6 {[%clk 0:00:11]}  Rd2 {[%clk 0:00:17]} 42. Kf6 {[%clk 0:00:09]}  Rf2+ {[%clk 0:00:15]} 43. Ke6 {[%clk 0:00:09]}  Rd2 {[%clk 0:00:16]} 44. d7 {[%clk 0:00:09]}  b3 {[%clk 0:00:15]} 45. Rc8+ {[%clk 0:00:09]}  Kg7 {[%clk 0:00:15]} 46. d8=Q {[%clk 0:00:08]}  Rxd8 {[%clk 0:00:16]} 47. Rxd8 {[%clk 0:00:09]}  a5 {[%clk 0:00:17]} 48. Rb8 {[%clk 0:00:08]}  a4 {[%clk 0:00:17]} 49. Kf5 {[%clk 0:00:08]}  Kf7 {[%clk 0:00:16]} 50. Kxg5 {[%clk 0:00:08]}  Ke6 {[%clk 0:00:17]} 51. Kf4 {[%clk 0:00:08]}  Ke7 {[%clk 0:00:17]} 52. Kf5 {[%clk 0:00:08]}  Kd7 {[%clk 0:00:17]} 53. Kf6 {[%clk 0:00:09]}  Kc7 {[%clk 0:00:18]} 54. Rb4 {[%clk 0:00:08]}  Kc6 {[%clk 0:00:18]} 55. Rxa4 {[%clk 0:00:08]}  Kb5 {[%clk 0:00:19]} 56. Ra1 {[%clk 0:00:08]}  Kc4 {[%clk 0:00:20]} 57. Rb1 {[%clk 0:00:08]}  Kc3 {[%clk 0:00:21]} 58. Rxb3+ {[%clk 0:00:09]}  Kc4 {[%clk 0:00:21]} 59. e6 {[%clk 0:00:09]}  Kc5 {[%clk 0:00:22]} 60. e7 {[%clk 0:00:09]}  Kd6 {[%clk 0:00:23]} 61. e8=Q {[%clk 0:00:09]}  Kd5 {[%clk 0:00:24]} 62. Qe5+ {[%clk 0:00:09]}  Kc4 {[%clk 0:00:24]} 63. Rc3+ {[%clk 0:00:10]}  Kb4 {[%clk 0:00:25]} 64. Qc5+ {[%clk 0:00:10]}  Ka4 {[%clk 0:00:26]} 65. Ra3# {[%clk 0:00:10]} 1-0


[Site "https://www.chess.com"]

[Event "Titled Tuesday Blitz April 05 Early 2022"]
[White "Tsyhanchuk, Stanislav"]
[Black "Baches Garcia, Guillermo"]
[WhiteFideId "13505130"]
[BlackFideId "2209764"]
[WhiteElo "2078"]
[BlackElo "2480"]
[Result "1-0"]
[Round "02"]
[TimeControl "180+1"]
[Date "2022.04.05"]
[WhiteClock "0:02:22"]
[BlackClock "0:02:07"]

1. d4 {[%clk 0:03:00]}  Nf6 {[%clk 0:02:59]} 2. c4 {[%clk 0:03:01]}  e6 {[%clk 0:02:59]} 3. Nc3 {[%clk 0:03:01]}  d5 {[%clk 0:02:59]} 4. cxd5 {[%clk 0:03:01]}  Nxd5 {[%clk 0:03:00]} 5. e4 {[%clk 0:03:00]}  Nxc3 {[%clk 0:03:01]} 6. bxc3 {[%clk 0:03:01]}  c5 {[%clk 0:03:01]} 7. Nf3 {[%clk 0:03:02]}  cxd4 {[%clk 0:03:02]} 8. cxd4 {[%clk 0:03:03]}  Bb4+ {[%clk 0:03:02]} 9. Bd2 {[%clk 0:03:03]}  Bxd2+ {[%clk 0:03:02]} 10. Qxd2 {[%clk 0:03:04]}  O-O {[%clk 0:03:02]} 11. Bc4 {[%clk 0:03:03]}  Nd7 {[%clk 0:03:02]} 12. O-O {[%clk 0:03:03]}  b6 {[%clk 0:03:03]} 13. Rac1 {[%clk 0:03:03]}  Bb7 {[%clk 0:03:03]} 14. Rfe1 {[%clk 0:02:59]}  Rc8 {[%clk 0:03:02]} 15. Qf4 {[%clk 0:02:54]}  Qc7 {[%clk 0:02:48]} 16. Qh4 {[%clk 0:02:49]}  Nf6 {[%clk 0:02:36]} 17. e5 {[%clk 0:02:35]}  Nd7 {[%clk 0:02:20]} 18. Bd3 {[%clk 0:02:30]}  g6 {[%clk 0:02:06]} 19. Rxc7 {[%clk 0:02:29]}  Rxc7 {[%clk 0:02:07]} 20. Ng5 {[%clk 0:02:29]}  h5 {[%clk 0:02:07]} 21. g4 {[%clk 0:02:22]} 1-0


[Site "https://www.chess.com"]

[Event "Titled Tuesday Blitz April 05 Early 2022"]
[White "Urbina Quiroz, Edwin"]
[Black "Chernomordik, Pavel"]
[WhiteFideId "6500650"]
[BlackFideId "2804530"]
[WhiteElo "2152"]
[BlackElo "2220"]
[Result "1-0"]
[Round "02"]
[TimeControl "180+1"]
[Date "2022.04.05"]
[WhiteClock "0:00:16"]
[BlackClock "0:00:01"]

1. e4 {[%clk 0:03:00]}  g6 {[%clk 0:02:58]} 2. d4 {[%clk 0:03:00]}  Bg7 {[%clk 0:02:58]} 3. h4 {[%clk 0:03:01]}  d5 {[%clk 0:02:56]} 4. exd5 {[%clk 0:02:59]}  Qxd5 {[%clk 0:02:52]} 5. Nf3 {[%clk 0:02:56]}  Bg4 {[%clk 0:02:48]} 6. Be3 {[%clk 0:02:54]}  Nf6 {[%clk 0:02:36]} 7. Be2 {[%clk 0:02:53]}  Nbd7 {[%clk 0:02:24]} 8. c4 {[%clk 0:02:49]}  Qa5+ {[%clk 0:02:22]} 9. Nc3 {[%clk 0:02:49]}  Ne4 {[%clk 0:02:16]} 10. Qb3 {[%clk 0:02:38]}  Nxc3 {[%clk 0:02:13]} 11. bxc3 {[%clk 0:02:29]}  O-O {[%clk 0:02:07]} 12. O-O {[%clk 0:02:22]}  e5 {[%clk 0:02:03]} 13. Rfe1 {[%clk 0:02:12]}  Qb6 {[%clk 0:01:50]} 14. c5 {[%clk 0:02:06]}  Qxb3 {[%clk 0:01:42]} 15. axb3 {[%clk 0:02:07]}  Rfe8 {[%clk 0:01:37]} 16. b4 {[%clk 0:01:49]}  exd4 {[%clk 0:01:31]} 17. cxd4 {[%clk 0:01:38]}  Nf6 {[%clk 0:01:30]} 18. Bc4 {[%clk 0:01:20]}  Bxf3 {[%clk 0:01:25]} 19. gxf3 {[%clk 0:01:21]}  c6 {[%clk 0:01:25]} 20. b5 {[%clk 0:01:03]}  cxb5 {[%clk 0:01:16]} 21. Bxb5 {[%clk 0:01:04]}  Red8 {[%clk 0:01:15]} 22. c6 {[%clk 0:00:59]}  bxc6 {[%clk 0:01:13]} 23. Bxc6 {[%clk 0:01:00]}  Rac8 {[%clk 0:01:13]} 24. Bb7 {[%clk 0:00:30]}  Rc7 {[%clk 0:01:09]} 25. Rxa7 {[%clk 0:00:30]}  Nd5 {[%clk 0:01:00]} 26. Ra8 {[%clk 0:00:20]}  Rxa8 {[%clk 0:00:56]} 27. Bxa8 {[%clk 0:00:21]}  Nxe3 {[%clk 0:00:42]} 28. fxe3 {[%clk 0:00:21]}  Bf6 {[%clk 0:00:41]} 29. h5 {[%clk 0:00:20]}  gxh5 {[%clk 0:00:40]} 30. Be4 {[%clk 0:00:20]}  h4 {[%clk 0:00:39]} 31. Kf2 {[%clk 0:00:20]}  Ra7 {[%clk 0:00:38]} 32. f4 {[%clk 0:00:20]}  Ra2+ {[%clk 0:00:36]} 33. Re2 {[%clk 0:00:20]}  Ra3 {[%clk 0:00:36]} 34. Rd2 {[%clk 0:00:19]}  Kf8 {[%clk 0:00:34]} 35. Kf3 {[%clk 0:00:20]}  Ke7 {[%clk 0:00:34]} 36. Bxh7 {[%clk 0:00:19]}  Ra1 {[%clk 0:00:30]} 37. Bf5 {[%clk 0:00:19]}  Rf1+ {[%clk 0:00:26]} 38. Ke4 {[%clk 0:00:18]}  Re1 {[%clk 0:00:26]} 39. d5 {[%clk 0:00:18]}  Kd6 {[%clk 0:00:25]} 40. Rc2 {[%clk 0:00:17]}  Bd8 {[%clk 0:00:22]} 41. Rc6+ {[%clk 0:00:17]}  Ke7 {[%clk 0:00:22]} 42. Rh6 {[%clk 0:00:17]}  Kf8 {[%clk 0:00:17]} 43. Rh8+ {[%clk 0:00:17]}  Ke7 {[%clk 0:00:17]} 44. d6+ {[%clk 0:00:17]}  Kxd6 {[%clk 0:00:16]} 45. Rxd8+ {[%clk 0:00:18]}  Ke7 {[%clk 0:00:16]} 46. Rh8 {[%clk 0:00:18]}  Rh1 {[%clk 0:00:12]} 47. Kf3 {[%clk 0:00:18]}  Rf1+ {[%clk 0:00:09]} 48. Kg2 {[%clk 0:00:17]}  Re1 {[%clk 0:00:08]} 49. Kf2 {[%clk 0:00:17]}  Rh1 {[%clk 0:00:06]} 50. e4 {[%clk 0:00:17]}  Rh2+ {[%clk 0:00:06]} 51. Kf3 {[%clk 0:00:17]}  Kf6 {[%clk 0:00:04]} 52. Kg4 {[%clk 0:00:17]}  Rg2+ {[%clk 0:00:03]} 53. Kxh4 {[%clk 0:00:16]}  Rh2+ {[%clk 0:00:03]} 54. Bh3 {[%clk 0:00:16]}  Kg7 {[%clk 0:00:01]} 55. Ra8 {[%clk 0:00:16]} 1-0


[Site "https://www.chess.com"]

[Event "Titled Tuesday Blitz April 05 Early 2022"]
[White "Vokarev, Sergey"]
[Black "Politov, Pavel Y."]
[WhiteFideId "4119711"]
[BlackFideId "24110515"]
[WhiteElo "2343"]
[BlackElo "2090"]
[Result "1-0"]
[Round "02"]
[TimeControl "180+1"]
[Date "2022.04.05"]
[WhiteClock "0:00:51"]
[BlackClock "0:00:06"]

1. e4 {[%clk 0:02:57]}  c6 {[%clk 0:02:59]} 2. d4 {[%clk 0:02:54]}  d5 {[%clk 0:02:57]} 3. Nd2 {[%clk 0:02:54]}  dxe4 {[%clk 0:02:54]} 4. Nxe4 {[%clk 0:02:55]}  Nf6 {[%clk 0:02:54]} 5. Nxf6+ {[%clk 0:02:56]}  gxf6 {[%clk 0:02:52]} 6. c3 {[%clk 0:02:57]}  e6 {[%clk 0:02:50]} 7. Nf3 {[%clk 0:02:56]}  c5 {[%clk 0:02:47]} 8. Be3 {[%clk 0:02:37]}  cxd4 {[%clk 0:02:45]} 9. Nxd4 {[%clk 0:02:26]}  Nc6 {[%clk 0:02:41]} 10. Nxc6 {[%clk 0:02:22]}  bxc6 {[%clk 0:02:36]} 11. Qxd8+ {[%clk 0:02:16]}  Kxd8 {[%clk 0:02:37]} 12. g3 {[%clk 0:02:11]}  Kc7 {[%clk 0:02:34]} 13. Bg2 {[%clk 0:02:11]}  Bb7 {[%clk 0:02:33]} 14. O-O-O {[%clk 0:02:10]}  Be7 {[%clk 0:02:29]} 15. Bf4+ {[%clk 0:01:54]}  e5 {[%clk 0:02:27]} 16. Bh6 {[%clk 0:01:53]}  Rhd8 {[%clk 0:02:23]} 17. f4 {[%clk 0:01:51]}  c5 {[%clk 0:02:18]} 18. Bxb7 {[%clk 0:01:48]}  Kxb7 {[%clk 0:02:17]} 19. Rhe1 {[%clk 0:01:46]}  Rxd1+ {[%clk 0:02:14]} 20. Kxd1 {[%clk 0:01:45]}  Rd8+ {[%clk 0:02:12]} 21. Kc2 {[%clk 0:01:45]}  Rd5 {[%clk 0:02:01]} 22. c4 {[%clk 0:01:38]}  Rd4 {[%clk 0:01:59]} 23. b3 {[%clk 0:01:35]}  e4 {[%clk 0:01:54]} 24. f5 {[%clk 0:01:35]}  Bd6 {[%clk 0:00:59]} 25. Be3 {[%clk 0:01:34]}  Rd3 {[%clk 0:00:59]} 26. Re2 {[%clk 0:01:18]}  Kc6 {[%clk 0:00:54]} 27. Bd2 {[%clk 0:01:08]}  Rf3 {[%clk 0:00:52]} 28. Rxe4 {[%clk 0:01:06]}  Rxf5 {[%clk 0:00:52]} 29. Rh4 {[%clk 0:01:05]}  h5 {[%clk 0:00:49]} 30. Bf4 {[%clk 0:01:05]}  Bxf4 {[%clk 0:00:47]} 31. Rxf4 {[%clk 0:01:05]}  Rxf4 {[%clk 0:00:36]} 32. gxf4 {[%clk 0:01:05]}  Kd6 {[%clk 0:00:36]} 33. a3 {[%clk 0:01:04]}  a5 {[%clk 0:00:35]} 34. Kc3 {[%clk 0:01:04]}  a4 {[%clk 0:00:12]} 35. b4 {[%clk 0:00:55]}  f5 {[%clk 0:00:11]} 36. b5 {[%clk 0:00:50]}  Kc7 {[%clk 0:00:10]} 37. Kd3 {[%clk 0:00:50]}  Kb6 {[%clk 0:00:07]} 38. Ke3 {[%clk 0:00:51]}  Kc7 {[%clk 0:00:06]} 39. Kf3 {[%clk 0:00:51]}  Kd6 {[%clk 0:00:05]} 40. Kg3 {[%clk 0:00:51]}  Kc7 {[%clk 0:00:05]} 41. Kh4 {[%clk 0:00:51]}  Kb6 {[%clk 0:00:05]} 42. Kxh5 {[%clk 0:00:51]}  Ka5 {[%clk 0:00:05]} 43. Kg5 {[%clk 0:00:51]}  Kb6 {[%clk 0:00:06]} 44. h4 {[%clk 0:00:51]} 1-0


[Site "https://www.chess.com"]

[Event "Titled Tuesday Blitz April 05 Early 2022"]
[White "Vokhidov, Shamsiddin"]
[Black "Taboas Rodriguez, Daniel"]
[WhiteFideId "14204223"]
[BlackFideId "2208466"]
[WhiteElo "2611"]
[BlackElo "2429"]
[Result "1-0"]
[Round "02"]
[TimeControl "180+1"]
[Date "2022.04.05"]
[WhiteClock "0:01:05"]
[BlackClock "0:00:54"]

1. e4 {[%clk 0:03:00]}  e6 {[%clk 0:03:00]} 2. d4 {[%clk 0:03:01]}  d5 {[%clk 0:03:00]} 3. Nc3 {[%clk 0:03:02]}  Nc6 {[%clk 0:03:01]} 4. Nf3 {[%clk 0:03:00]}  Nf6 {[%clk 0:03:01]} 5. e5 {[%clk 0:02:59]}  Ne4 {[%clk 0:03:01]} 6. Ne2 {[%clk 0:02:55]}  f6 {[%clk 0:03:00]} 7. Be3 {[%clk 0:02:46]}  fxe5 {[%clk 0:02:58]} 8. Nxe5 {[%clk 0:02:45]}  Nxe5 {[%clk 0:02:58]} 9. dxe5 {[%clk 0:02:46]}  Bd7 {[%clk 0:02:54]} 10. Ng3 {[%clk 0:02:44]}  Bc6 {[%clk 0:02:19]} 11. Bd3 {[%clk 0:02:34]}  Qh4 {[%clk 0:02:17]} 12. Bxe4 {[%clk 0:02:25]}  dxe4 {[%clk 0:02:18]} 13. Qd4 {[%clk 0:02:20]}  Be7 {[%clk 0:02:11]} 14. O-O-O {[%clk 0:02:18]}  O-O {[%clk 0:02:10]} 15. Qc4 {[%clk 0:02:17]}  Qg4 {[%clk 0:02:01]} 16. f3 {[%clk 0:02:10]}  Qg6 {[%clk 0:01:59]} 17. f4 {[%clk 0:02:06]}  Rac8 {[%clk 0:01:42]} 18. f5 {[%clk 0:02:04]}  Qf7 {[%clk 0:01:33]} 19. fxe6 {[%clk 0:01:55]}  Qg6 {[%clk 0:01:33]} 20. Rhf1 {[%clk 0:01:48]}  Kh8 {[%clk 0:01:24]} 21. Rf7 {[%clk 0:01:43]}  Bg5 {[%clk 0:01:20]} 22. Re1 {[%clk 0:01:09]}  Bxe3+ {[%clk 0:01:06]} 23. Rxe3 {[%clk 0:01:09]}  Qg5 {[%clk 0:01:07]} 24. Qc5 {[%clk 0:01:05]}  b6 {[%clk 0:00:56]} 25. Rxf8+ {[%clk 0:01:04]}  Rxf8 {[%clk 0:00:54]} 26. Qxf8# {[%clk 0:01:05]} 1-0


[Site "https://www.chess.com"]

[Event "Titled Tuesday Blitz April 05 Early 2022"]
[White "Vusatiuk, Vladimir"]
[Black "Estrada Nieto, Julian"]
[WhiteFideId "14118610"]
[BlackFideId "5101018"]
[WhiteElo "2157"]
[BlackElo "2252"]
[Result "1-0"]
[Round "02"]
[TimeControl "180+1"]
[Date "2022.04.05"]
[WhiteClock "0:00:10"]
[BlackClock "0:00:34"]

1. d4 {[%clk 0:03:00]}  d5 {[%clk 0:02:59]} 2. c4 {[%clk 0:03:01]}  dxc4 {[%clk 0:03:00]} 3. Nf3 {[%clk 0:02:58]}  Nf6 {[%clk 0:03:00]} 4. e3 {[%clk 0:02:59]}  e6 {[%clk 0:03:00]} 5. Bxc4 {[%clk 0:02:59]}  c5 {[%clk 0:03:01]} 6. O-O {[%clk 0:02:57]}  a6 {[%clk 0:03:02]} 7. a4 {[%clk 0:02:57]}  Nc6 {[%clk 0:03:02]} 8. Nc3 {[%clk 0:02:54]}  Be7 {[%clk 0:03:02]} 9. Qe2 {[%clk 0:02:53]}  cxd4 {[%clk 0:03:02]} 10. Rd1 {[%clk 0:02:51]}  e5 {[%clk 0:03:03]} 11. exd4 {[%clk 0:02:48]}  exd4 {[%clk 0:03:03]} 12. Be3 {[%clk 0:02:35]}  Bg4 {[%clk 0:03:02]} 13. h3 {[%clk 0:02:27]}  Bxf3 {[%clk 0:03:01]} 14. Qxf3 {[%clk 0:02:28]}  O-O {[%clk 0:03:00]} 15. Bg5 {[%clk 0:02:18]}  h6 {[%clk 0:02:42]} 16. Bxf6 {[%clk 0:02:17]}  Bxf6 {[%clk 0:02:42]} 17. Nd5 {[%clk 0:02:14]}  Ne5 {[%clk 0:02:39]} 18. Nxf6+ {[%clk 0:01:59]}  Qxf6 {[%clk 0:02:38]} 19. Qxf6 {[%clk 0:01:59]}  gxf6 {[%clk 0:02:38]} 20. Rxd4 {[%clk 0:01:59]}  Rfd8 {[%clk 0:02:33]} 21. Bd5 {[%clk 0:01:53]}  Nc6 {[%clk 0:02:23]} 22. Rg4+ {[%clk 0:01:40]}  Kf8 {[%clk 0:02:23]} 23. Bxc6 {[%clk 0:01:27]}  bxc6 {[%clk 0:02:22]} 24. Rc1 {[%clk 0:01:28]}  Rd6 {[%clk 0:02:19]} 25. Rgc4 {[%clk 0:01:19]}  Rc8 {[%clk 0:02:13]} 26. Rc5 {[%clk 0:00:54]}  Ke7 {[%clk 0:02:12]} 27. b4 {[%clk 0:00:54]}  Kd7 {[%clk 0:02:08]} 28. Ra5 {[%clk 0:00:53]}  Rb8 {[%clk 0:02:02]} 29. Rc4 {[%clk 0:00:37]}  Rb6 {[%clk 0:02:01]} 30. Rh5 {[%clk 0:00:38]}  Rd1+ {[%clk 0:01:53]} 31. Kh2 {[%clk 0:00:38]}  Rd2 {[%clk 0:01:54]} 32. Kg3 {[%clk 0:00:37]}  Rd3+ {[%clk 0:01:47]} 33. f3 {[%clk 0:00:35]}  Rb3 {[%clk 0:01:41]} 34. Rxh6 {[%clk 0:00:18]}  Ke7 {[%clk 0:01:25]} 35. Rhh4 {[%clk 0:00:17]}  f5 {[%clk 0:01:23]} 36. Rhf4 {[%clk 0:00:15]}  Ke6 {[%clk 0:01:23]} 37. h4 {[%clk 0:00:15]}  Rb1 {[%clk 0:01:19]} 38. a5 {[%clk 0:00:14]}  Rb8 {[%clk 0:01:11]} 39. Rxc6+ {[%clk 0:00:15]}  Ke5 {[%clk 0:01:10]} 40. Rc5+ {[%clk 0:00:13]}  Ke6 {[%clk 0:01:10]} 41. Rcxf5 {[%clk 0:00:14]}  Rg8+ {[%clk 0:01:06]} 42. Kh2 {[%clk 0:00:10]}  Rb2 {[%clk 0:01:05]} 43. Rg5 {[%clk 0:00:10]}  Rh8 {[%clk 0:00:57]} 44. Kg3 {[%clk 0:00:10]}  Rc8 {[%clk 0:00:49]} 45. Re4+ {[%clk 0:00:10]}  Kf6 {[%clk 0:00:49]} 46. Rf4+ {[%clk 0:00:08]}  Ke6 {[%clk 0:00:48]} 47. h5 {[%clk 0:00:08]}  Rcc2 {[%clk 0:00:45]} 48. Kh3 {[%clk 0:00:08]}  f6 {[%clk 0:00:44]} 49. Rg6 {[%clk 0:00:08]}  Rc1 {[%clk 0:00:43]} 50. Rfxf6+ {[%clk 0:00:09]}  Ke5 {[%clk 0:00:44]} 51. h6 {[%clk 0:00:09]}  Rh1+ {[%clk 0:00:43]} 52. Kg3 {[%clk 0:00:10]}  Rg1 {[%clk 0:00:41]} 53. Kh2 {[%clk 0:00:10]}  Rd1 {[%clk 0:00:40]} 54. h7 {[%clk 0:00:10]}  Rd8 {[%clk 0:00:39]} 55. Rg8 {[%clk 0:00:10]}  Kxf6 {[%clk 0:00:34]} 56. h8=Q+ {[%clk 0:00:10]} 1-0


[Site "https://www.chess.com"]

[Event "Titled Tuesday Blitz April 05 Early 2022"]
[White "Yang, Kaiqi"]
[Black "Shimanov, Aleksandr"]
[WhiteFideId "8604398"]
[BlackFideId "4198603"]
[WhiteElo "2373"]
[BlackElo "2636"]
[Result "0-1"]
[Round "02"]
[TimeControl "180+1"]
[Date "2022.04.05"]
[WhiteClock "0:00:09"]
[BlackClock "0:00:35"]

1. e4 {[%clk 0:03:00]}  c6 {[%clk 0:02:56]} 2. d4 {[%clk 0:03:00]}  d5 {[%clk 0:02:56]} 3. e5 {[%clk 0:03:01]}  Bf5 {[%clk 0:02:55]} 4. h4 {[%clk 0:03:01]}  h5 {[%clk 0:02:47]} 5. Bg5 {[%clk 0:03:01]}  Qb6 {[%clk 0:02:42]} 6. Bd3 {[%clk 0:03:01]}  Bxd3 {[%clk 0:02:35]} 7. Qxd3 {[%clk 0:03:02]}  Qa6 {[%clk 0:02:36]} 8. e6 {[%clk 0:02:52]}  Qxd3 {[%clk 0:02:35]} 9. exf7+ {[%clk 0:02:46]}  Kxf7 {[%clk 0:02:36]} 10. cxd3 {[%clk 0:02:46]}  Nh6 {[%clk 0:02:35]} 11. Nf3 {[%clk 0:02:41]}  Nd7 {[%clk 0:02:32]} 12. Bxh6 {[%clk 0:02:38]}  Rxh6 {[%clk 0:02:33]} 13. Nbd2 {[%clk 0:02:20]}  Re8 {[%clk 0:02:24]} 14. Ng5+ {[%clk 0:02:07]}  Kg8 {[%clk 0:02:22]} 15. f4 {[%clk 0:02:07]}  e6 {[%clk 0:02:01]} 16. Ndf3 {[%clk 0:02:05]}  Bd6 {[%clk 0:01:58]} 17. g3 {[%clk 0:02:05]}  Nf6 {[%clk 0:01:58]} 18. Kd2 {[%clk 0:01:51]}  Ng4 {[%clk 0:01:58]} 19. Rhe1 {[%clk 0:01:50]}  Rf6 {[%clk 0:01:58]} 20. a3 {[%clk 0:01:43]}  Nh6 {[%clk 0:01:58]} 21. Ne5 {[%clk 0:01:39]}  Nf5 {[%clk 0:01:54]} 22. Nd7 {[%clk 0:01:36]}  Nxd4 {[%clk 0:01:47]} 23. Kc3 {[%clk 0:01:25]}  Nb5+ {[%clk 0:01:45]} 24. Kc2 {[%clk 0:01:15]}  Rh6 {[%clk 0:01:44]} 25. Re3 {[%clk 0:01:08]}  Nd4+ {[%clk 0:01:42]} 26. Kc3 {[%clk 0:01:02]}  Nf5 {[%clk 0:01:40]} 27. Rf3 {[%clk 0:01:02]}  Re7 {[%clk 0:01:31]} 28. Ne5 {[%clk 0:01:02]}  Rf6 {[%clk 0:01:24]} 29. d4 {[%clk 0:00:58]}  Bxe5 {[%clk 0:01:18]} 30. fxe5 {[%clk 0:00:57]}  Rf8 {[%clk 0:01:18]} 31. b4 {[%clk 0:00:56]}  g6 {[%clk 0:01:16]} 32. Kd3 {[%clk 0:00:54]}  b6 {[%clk 0:01:14]} 33. Rc1 {[%clk 0:00:52]}  Rc8 {[%clk 0:01:13]} 34. Rc2 {[%clk 0:00:37]}  Ree8 {[%clk 0:01:11]} 35. a4 {[%clk 0:00:35]}  Kf8 {[%clk 0:01:06]} 36. Nh7+ {[%clk 0:00:35]}  Ke7 {[%clk 0:01:06]} 37. Nf6 {[%clk 0:00:35]}  Red8 {[%clk 0:01:05]} 38. Rb2 {[%clk 0:00:30]}  Rc7 {[%clk 0:01:02]} 39. a5 {[%clk 0:00:17]}  Rb8 {[%clk 0:01:00]} 40. a6 {[%clk 0:00:15]}  Rbc8 {[%clk 0:00:44]} 41. Rb1 {[%clk 0:00:13]}  c5 {[%clk 0:00:37]} 42. bxc5 {[%clk 0:00:12]}  bxc5 {[%clk 0:00:38]} 43. dxc5 {[%clk 0:00:13]}  Rxc5 {[%clk 0:00:39]} 44. Rb7+ {[%clk 0:00:12]}  R8c7 {[%clk 0:00:40]} 45. Ke2 {[%clk 0:00:11]}  Nd4+ {[%clk 0:00:39]} 46. Kf2 {[%clk 0:00:10]}  Nxf3 {[%clk 0:00:39]} 47. Kxf3 {[%clk 0:00:11]}  Rxb7 {[%clk 0:00:38]} 48. axb7 {[%clk 0:00:11]}  Rb5 {[%clk 0:00:39]} 49. Ng8+ {[%clk 0:00:10]}  Kf7 {[%clk 0:00:35]} 50. Nf6 {[%clk 0:00:09]} 0-1


[Site "https://www.chess.com"]

[Event "Titled Tuesday Blitz April 05 Early 2022"]
[White "Alinasab, Mobina"]
[Black "Hasangatin, Ramil"]
[WhiteFideId "12528897"]
[BlackFideId "4122160"]
[WhiteElo "2031"]
[BlackElo "2375"]
[Result "0-1"]
[Round "03"]
[TimeControl "180+1"]
[Date "2022.04.05"]
[WhiteClock "0:00:02"]
[BlackClock "0:01:02"]

1. e4 {[%clk 0:03:00]}  c6 {[%clk 0:02:53]} 2. d4 {[%clk 0:02:58]}  d6 {[%clk 0:02:53]} 3. Nc3 {[%clk 0:02:57]}  g6 {[%clk 0:02:53]} 4. f4 {[%clk 0:02:57]}  Bg7 {[%clk 0:02:53]} 5. Nf3 {[%clk 0:02:58]}  d5 {[%clk 0:02:50]} 6. e5 {[%clk 0:02:56]}  h5 {[%clk 0:02:50]} 7. h3 {[%clk 0:02:55]}  Nh6 {[%clk 0:02:48]} 8. Bd3 {[%clk 0:02:48]}  Nf5 {[%clk 0:02:46]} 9. Ne2 {[%clk 0:02:41]}  h4 {[%clk 0:02:44]} 10. c3 {[%clk 0:02:36]}  b6 {[%clk 0:02:43]} 11. Ng5 {[%clk 0:02:22]}  e6 {[%clk 0:02:39]} 12. Bxf5 {[%clk 0:02:19]}  exf5 {[%clk 0:02:36]} 13. Be3 {[%clk 0:02:15]}  Na6 {[%clk 0:02:36]} 14. Bf2 {[%clk 0:02:15]}  Nc7 {[%clk 0:02:32]} 15. Ng1 {[%clk 0:02:06]}  Ne6 {[%clk 0:02:32]} 16. Nxe6 {[%clk 0:02:05]}  Bxe6 {[%clk 0:02:31]} 17. Nf3 {[%clk 0:02:06]}  Bf8 {[%clk 0:02:31]} 18. Qa4 {[%clk 0:01:37]}  Bd7 {[%clk 0:02:31]} 19. e6 {[%clk 0:01:31]}  fxe6 {[%clk 0:02:29]} 20. Ne5 {[%clk 0:01:30]}  Rg8 {[%clk 0:02:21]} 21. O-O-O {[%clk 0:01:12]}  Bd6 {[%clk 0:02:21]} 22. Rde1 {[%clk 0:01:07]}  g5 {[%clk 0:02:13]} 23. fxg5 {[%clk 0:00:56]}  Qxg5+ {[%clk 0:02:14]} 24. Kb1 {[%clk 0:00:52]}  Bxe5 {[%clk 0:01:55]} 25. dxe5 {[%clk 0:00:53]}  c5 {[%clk 0:01:51]} 26. Qxh4 {[%clk 0:00:41]}  Qxh4 {[%clk 0:01:47]} 27. Bxh4 {[%clk 0:00:42]}  Rxg2 {[%clk 0:01:47]} 28. Bf6 {[%clk 0:00:42]}  Kf7 {[%clk 0:01:45]} 29. h4 {[%clk 0:00:42]}  Bb5 {[%clk 0:01:30]} 30. h5 {[%clk 0:00:41]}  Bd3+ {[%clk 0:01:29]} 31. Ka1 {[%clk 0:00:40]}  f4 {[%clk 0:01:29]} 32. h6 {[%clk 0:00:17]}  Kg8 {[%clk 0:01:14]} 33. Reg1 {[%clk 0:00:06]}  f3 {[%clk 0:01:13]} 34. h7+ {[%clk 0:00:03]}  Bxh7 {[%clk 0:01:12]} 35. Rxg2+ {[%clk 0:00:02]}  fxg2 {[%clk 0:01:12]} 36. Rg1 {[%clk 0:00:02]}  Be4 {[%clk 0:01:11]} 37. b3 {[%clk 0:00:03]}  Kf7 {[%clk 0:01:11]} 38. Kb2 {[%clk 0:00:04]}  Rg8 {[%clk 0:01:09]} 39. Kc1 {[%clk 0:00:04]}  Rg3 {[%clk 0:01:08]} 40. Kd2 {[%clk 0:00:04]}  Rd3+ {[%clk 0:01:08]} 41. Ke2 {[%clk 0:00:04]}  Rxc3 {[%clk 0:01:08]} 42. Kf2 {[%clk 0:00:04]}  Rc2+ {[%clk 0:01:08]} 43. Kg3 {[%clk 0:00:04]}  Rxa2 {[%clk 0:01:07]} 44. Kh2 {[%clk 0:00:03]}  Rf2 {[%clk 0:01:03]} 45. Re1 {[%clk 0:00:02]}  Rf1 {[%clk 0:01:02]} 0-1


[Site "https://www.chess.com"]